[Event "44th Chess Olympiad Open 2022"]
[Site "Chennai"]
[Date "2022.08.03"]
[Round "6.15"]
[White "Repka, Christopher"]
[Black "Durarbayli, Vasif"]
[Result "1-0"]
[WhiteElo "2516"]
[BlackElo "2638"]
[Annotator "TA"]
[PlyCount "69"]
[EventDate "2022.??.??"]
[TimeControl "60"]

{[%evp 9,69,0,0,0,0,0,0,0,0,-6,8,0,20,0,0,0,0,0,0,-13,-15,-39,74,77,77,58,264,
257,350,360,350,371,446,446,426,321,312,303,324,283,274,291,276,270,382,338,
383,364,389,381,407,379,362,372,947,945,912,879,1000,970,4910,4902]} 1. d4 {
[%emt 0:00:04]} d5 {[%emt 0:00:19][%cal Yd7d5,Yd5c4]} 2. c4 {[%emt 0:00:00]} c6
{[%emt 0:00:06]} 3. Nf3 {[%emt 0:00:08]} Nf6 {[%emt 0:00:18]} 4. Nc3 {[%emt 0:
00:05]} e6 {[%emt 0:00:05]} 5. Qc2 {[%emt 0:00:07]} dxc4 {[%emt 0:00:00]} 6. a4
{[%emt 0:00:05] Against b5. D43: Semi-Slav: 5 Bg5 h6.} c5 {[%emt 0:00:00]} 7.
dxc5 {[%emt 0:00:04]} Na6 {[%emt 0:03:48]} 8. e4 {[%emt 0:00:07] The position
is equal.} Nb4 {[%emt 0:05:45]} 9. Qb1 {[%emt 0:00:54]} Bxc5 {[%emt 0:02:46]
Threatens to win with ...Ng4.} 10. Bxc4 {[%emt 0:00:05] [#]} Bd7 $146 {[%emt 0:
05:24]} ({Predecessor:} 10... e5 11. O-O O-O 12. Bg5 h6 13. Bh4 Qe7 14. Qd1 Rd8
15. Qb3 g5 16. Bg3 Nc6 {½-½ (23) Sutkus,V (2418)-Roze,A (2516) ICCF email
2015}) 11. O-O {[%emt 0:01:14]} Bc6 {[%emt 0:03:56]} 12. e5 {[%emt 0:08:58]}
Nfd5 {[%emt 0:07:13]} 13. Ne4 {[%emt 0:09:25]} Be7 {[%emt 0:00:00]} 14. Bg5 {
[%emt 0:01:04]} O-O {[%emt 0:14:01]} 15. Ra3 {[%emt 0:07:40]} Rc8 {[%emt 0:06:
22]} (15... Nb6 $15 {keeps the upper hand.} 16. Bxe7 Qxe7) 16. Bxe7 $1 $16 {
[%emt 0:25:07]} Nxe7 {[%emt 0:06:44]} 17. Nd6 $40 {[%emt 0:01:45] Black needs
to defend precisely. White is more active.} (17. Neg5 $6 Ng6 18. Rc1 Qe7 $11)
17... Rc7 $2 {[%emt 0:01:38] [#] Loses the game.} ({Better is} 17... Bxf3 $14
18. Rxf3 Rc6) 18. Ng5 $1 $18 {[%emt 0:04:03][%csl Gg5][%cal Rb1h7]} Ng6 {
[%emt 0:04:45] [#]} 19. Nxe6 {[%emt 0:06:29]} fxe6 {[%emt 0:00:26]} 20. Bxe6+ {
[%emt 0:00:05]} Rff7 {[%emt 0:02:27]} 21. Nxf7 {[%emt 0:01:36]} ({Less strong
is} 21. Bxf7+ Rxf7 22. Nxf7 Kxf7 23. Qf5+ Kg8 24. Qe6+ Kh8 $18) 21... Rxf7 {
[%emt 0:00:01]} 22. Qf5 {[%emt 0:00:41]} Qc7 {[%emt 0:04:14]} 23. Rd1 {[%emt 0:
03:19] Against Nd5. Dancing on a razor blade.} ({But not} 23. Bxf7+ Qxf7 24.
Qxf7+ Kxf7 $18) 23... Nf8 {[%emt 0:03:50]} 24. Qxf7+ {[%emt 0:12:19]} ({
Weaker is} 24. Rd7 Qxd7 25. Bxd7 Rxf5 26. Bxf5 a5 $14) 24... Qxf7 {[%emt 0:00:
02]} 25. Bxf7+ {[%emt 0:00:06]} Kxf7 {[%emt 0:00:03]} 26. a5 {[%emt 0:00:35]}
Ne6 {[%emt 0:03:46]} (26... Ng6 $142 27. f4 Nd5) 27. Rd6 {[%emt 0:03:12]} a6 {
[%emt 0:02:37]} 28. Rc3 {[%emt 0:03:54]} Nf4 {[%emt 0:00:00]} 29. Rc4 {[%emt 0:
03:20][%csl Yb4,Yf4]} Nbd3 {[%emt 0:00:01]} 30. Rcxc6 {[%emt 0:03:27]} bxc6 {
[%emt 0:00:06]} 31. Rxc6 {[%emt 0:00:06]} Nxb2 $2 {[%emt 0:00:47]} (31... Nb4
32. Rc7+ Kf8) 32. Rxa6 {[%emt 0:00:17] White is clearly winning.} Nc4 {[%emt 0:
00:55]} 33. Ra7+ {[%emt 0:00:30]} Kg6 {[%emt 0:00:00]} 34. a6 {[%emt 0:00:27]
aiming for Rc7.} Nxe5 {[%emt 0:03:13]} 35. Rb7 {[%emt 0:00:03] Weighted Error
Value: White=0.09 (flawless) /Black=0.44} 1-0

[Event "44th Chess Olympiad Open 2022"]
[Site "Chennai"]
[Date "2022.08.03"]
[Round "6.16"]
[White "Korobov, Anton"]
[Black "Peralta, Fernando"]
[Result "1/2-1/2"]
[WhiteElo "2692"]
[BlackElo "2591"]
[Annotator "TA"]
[PlyCount "121"]
[EventDate "2022.??.??"]
[TimeControl "60"]

{[%evp 17,121,1,16,0,0,19,14,6,8,9,10,16,20,14,50,49,51,44,40,43,30,17,35,0,0,
0,0,0,0,0,0,0,0,-1,0,-9,0,0,0,-10,0,0,0,0,0,0,0,0,0,0,0,0,0,0,0,0,0,0,0,0,0,0,
0,0,0,0,0,0,0,0,0,0,0,0,0,0,0,0,17,17,17,17,105,17,17,17,80,0,0,0,0,0,0,0,0,0,
0,0,0,0,0,0,0,0,0,0]} 1. d4 {[%emt 0:00:02]} Nf6 {[%emt 0:00:20]} 2. c4 {
[%emt 0:00:07]} e6 {[%emt 0:00:07]} 3. Nf3 {[%emt 0:00:06]} b6 {[%emt 0:00:19]}
4. g3 {[%emt 0:00:20]} Bb7 {[%emt 0:00:06]} 5. Bg2 {[%emt 0:00:06]} Bb4+ {
[%emt 0:00:19]} 6. Bd2 {[%emt 0:00:27]} a5 {[%emt 0:00:04]} 7. O-O {[%emt 0:00:
00]} O-O {[%emt 0:00:04]} 8. Nc3 {[%emt 0:00:40]} d6 {[%emt 0:01:15]} 9. Qc2 {
[%emt 0:04:09]} Nbd7 {[%emt 0:00:20]} 10. Rfe1 {[%emt 0:01:08] E16: Queen's
Indian: 4 g3 Bb7 5 Bg2 Bb4+.} Bxc3 {[%emt 0:00:42]} 11. Bxc3 {[%emt 0:00:05]}
Be4 {[%emt 0:00:29]} 12. Qa4 {[%emt 0:01:45] [#]} Qb8 $5 $146 {[%emt 0:17:35]
New and interesting.} ({Predecessor:} 12... c5 13. Rad1 Qc7 14. Bh3 b5 15. cxb5
Nb6 16. Qa3 Bc2 17. dxc5 Nc4 18. cxd6 Qb6 {½-½ (47) Ivanisevic,I (2574)
-Indjic,A (2599) Valjevo 2018}) 13. Nh4 {[%emt 0:10:05] [#] Strongly
threatening Bxe4.} Bxg2 {[%emt 0:03:24]} (13... Rd8 {is more complex.} 14. f3
Bb7 15. d5 exd5 16. Nf5 dxc4 17. Qxc4 Re8) 14. Nxg2 {[%emt 0:00:34]} Qb7 {
[%emt 0:09:24]} 15. e4 {[%emt 0:00:51]} e5 {[%emt 0:06:17]} 16. f3 {[%emt 0:00:
00]} c6 {[%emt 0:14:09]} 17. Qc2 {[%emt 0:07:32]} b5 {[%emt 0:00:48]} 18. b3 {
[%emt 0:00:32]} a4 {[%emt 0:06:35]} 19. Rad1 {[%emt 0:08:55]} Rfb8 {[%emt 0:00:
00]} 20. c5 {[%emt 0:06:29]} (20. b4 {is interesting.} exd4 21. Bxd4 bxc4 22.
Qxc4 d5 23. Qc1) 20... exd4 {[%emt 0:04:00]} 21. Bxd4 {[%emt 0:00:02]} dxc5 {
[%emt 0:00:23]} 22. Bxc5 {[%emt 0:00:40]} axb3 {[%emt 0:05:13]} 23. axb3 {
[%emt 0:00:03]} Nxc5 {[%emt 0:00:06]} 24. Qxc5 {[%emt 0:00:06]} Nd7 {[%emt 0:
00:00]} 25. Qd4 {[%emt 0:02:15]} Nf8 {[%emt 0:01:36]} 26. Nf4 {[%emt 0:00:35]}
Rd8 {[%emt 0:01:41]} 27. Qc5 {[%emt 0:02:12]} (27. Qxd8 $2 Rxd8 28. Nh3 Qa7+
29. Nf2 Ra8 $19) 27... Rd7 {[%emt 0:01:11]} 28. e5 {[%emt 0:03:55]} Re8 {
[%emt 0:02:55]} 29. Kg2 {[%emt 0:02:36]} Qc7 {[%emt 0:06:55]} 30. Rd6 {[%emt 0:
00:00]} Rxe5 {[%emt 0:01:42]} 31. Rxd7 $1 {[%emt 0:00:10]} Nxd7 {[%emt 0:00:05]
} (31... Rxc5 $2 32. Rxc7 g6 33. Re8 $18) 32. Rxe5 {[%emt 0:00:07]} Qxe5 {
[%emt 0:00:10]} 33. Qxc6 $11 {[%emt 0:00:15] Endgame KQN-KQN} Nf8 {[%emt 0:00:
55]} 34. Qd5 {[%emt 0:01:42]} Qb2+ {[%emt 0:01:45]} 35. Kh3 {[%emt 0:00:02]}
Qc3 {[%emt 0:01:26]} 36. Nd3 {[%emt 0:04:05]} Qc8+ {[%emt 0:00:00]} 37. g4 {
[%emt 0:00:01]} Qe8 {[%emt 0:00:24]} 38. Kg3 {[%emt 0:02:21]} Ng6 {[%emt 0:00:
50]} 39. h4 {[%emt 0:02:05]} Qb8+ {[%emt 0:00:13]} 40. Kh3 {[%emt 0:00:47]} h6
{[%emt 0:00:43]} 41. h5 {[%emt 0:33:52]} Nf4+ {[%emt 0:00:00]} 42. Nxf4 {
[%emt 0:00:00]} Qxf4 {[%emt 0:00:03] KQ-KQ} 43. Kg2 {[%emt 0:00:00]} Qb8 {
[%emt 0:00:22]} 44. b4 {[%emt 0:00:00]} Qe8 {[%emt 0:03:15]} 45. Kf2 {[%emt 0:
00:00]} Kf8 {[%emt 0:00:31]} 46. f4 {[%emt 0:00:00]} Kg8 {[%emt 0:00:00]} 47.
Kf3 {[%emt 0:00:00]} Qb8 {[%emt 0:03:30]} 48. Ke4 {[%emt 0:00:00]} Qb6 {
[%emt 0:02:08]} 49. Qd7 {[%emt 0:00:00]} Qg1 {[%emt 0:03:32]} (49... Qb8 $11 {
remains equal.}) 50. Qc8+ {[%emt 0:00:00]} (50. Qxb5 Qe1+ 51. Kd5 (51. Kf3 Qh1+
52. Kf2 Qh2+ 53. Kf3 Qh1+ 54. Kf2 Qh4+ 55. Ke3 Qe1+ 56. Kd4 Qg1+ 57. Ke5 Qe3+
58. Kd5 Qd2+ 59. Kc5 Qf2+ 60. Kc6 Qxf4 $14) 51... Qd2+ 52. Kc5 (52. Ke4 Qg2+
53. Kf5 Qc2+ 54. Ke5 Qb2+ 55. Kd5 Qg2+ 56. Ke5 Qb2+ 57. Kd5 Qg2+ 58. Kc5 Qg1+
59. Kd6 Qd4+ 60. Kc6 Qxf4 $14) 52... Qe3+ 53. Kc6 Qxf4 $14) (50. Kd5 $16) 50...
Kh7 {[%emt 0:00:05]} 51. Qf5+ {[%emt 0:00:00]} Kg8 {[%emt 0:00:24]} (51... Kh8
$1 $11) 52. Kd5 {[%emt 0:00:00]} ({White should play} 52. Qxb5 $16 Qe1+ 53. Kd5
(53. Kf3 Qh1+ 54. Kf2 Qh2+ 55. Ke3 Qg3+ 56. Ke4 Qe1+ 57. Kd5 Qd1+ 58. Ke5 Qe1+
59. Kd6 Qd2+ 60. Kc7 Qxf4+ 61. Kb7 Qxg4 $14)) 52... Qc1 {[%emt 0:00:47] [#] ...
Qc4+ is the strong threat. The position is equal.} 53. Qe4 {[%emt 0:00:00]
Prevents Qc4+.} Qc8 $1 {[%emt 0:00:46] Against Qe8+} 54. Kd6 {[%emt 0:00:00]}
Qc4 {[%emt 0:00:44]} 55. Qxc4 {[%emt 0:01:46]} bxc4 {[%emt 0:00:03] KP-KP} 56.
b5 {[%emt 0:00:04] White threatens b6 and mate.} c3 {[%emt 0:00:02] ( -> ...c2)
} 57. b6 {[%emt 0:00:05] Threatening mate with b7.} c2 {[%emt 0:00:02]} 58. b7
{[%emt 0:00:06]} c1=Q {[%emt 0:00:06]} 59. b8=Q+ {[%emt 0:00:05]} Kh7 {[%emt 0:
00:00]} 60. Ke7 {[%emt 0:00:26]} f6 {[%emt 0:02:39]} 61. Ke6 {[%emt 0:01:03]
Weighted Error Value: White=0.09 (flawless) /Black=0.08 (flawless)} 1/2-1/2

[Event "44th Chess Olympiad Open 2022"]
[Site "Chennai"]
[Date "2022.08.03"]
[Round "6.16"]
[White "Shevchenko, Kirill"]
[Black "Tristan, Leonardo"]
[Result "1-0"]
[WhiteElo "2654"]
[BlackElo "2558"]
[Annotator "TA"]
[PlyCount "85"]
[EventDate "2022.??.??"]
[TimeControl "60"]

{[%evp 9,85,35,34,26,33,32,27,37,43,39,39,5,58,45,67,67,75,67,110,106,128,129,
157,143,154,153,168,175,173,179,182,180,181,217,264,240,293,289,347,350,350,
341,408,394,425,454,830,557,519,495,469,462,369,370,641,636,787,756,986,964,
1036,1020,1300,1269,2263,2118,4433,3065,29979,29980,29990,29989,29990,29990,
29990,29991,29991,29992]} 1. c4 {[%emt 0:00:03]} e6 {[%emt 0:00:08]} 2. Nc3 {
[%emt 0:00:07]} d5 {[%emt 0:00:09]} 3. d4 {[%emt 0:00:05]} h6 {[%emt 0:00:32]}
4. Nf3 {[%emt 0:09:03]} Nf6 {[%emt 0:00:07]} 5. g3 {[%emt 0:00:21]} Bd6 {
[%emt 0:00:26]} 6. Bg2 {[%emt 0:01:08] D37: Queen's Gambit Declined: 5 Bf4.}
O-O {[%emt 0:00:10]} 7. O-O {[%emt 0:05:15]} Nc6 {[%emt 0:00:15]} 8. b3 {
[%emt 0:09:59] White has an edge.} dxc4 {[%emt 0:00:17]} 9. bxc4 {[%emt 0:00:
00]} e5 {[%emt 0:00:06]} 10. d5 {[%emt 0:13:54]} Ne7 {[%emt 0:30:38]} (10...
Na5 $11) 11. Nd2 $14 {[%emt 0:05:03] [#]} Ng6 $146 {[%emt 0:19:01]} ({
Predecessor:} 11... b6 12. Qa4 Nh7 13. Nde4 f5 14. Nxd6 cxd6 15. Ba3 Rf6 16.
Nb5 Bd7 17. Qa6 Bc8 18. Qa4 Bd7 19. Qa6 Bc8 20. Qa4 {½-½ (20) Kandjolas,K 
(2031)-Poupalos,N (2107) Veliko Gradiste 2022}) 12. a4 {[%emt 0:07:33][%cal
Ya2a4,Ya4a5]} Re8 {[%emt 0:01:53] White stays focused until the end.} 13. a5 {
[%emt 0:03:07]} a6 {[%emt 0:01:18]} 14. e4 {[%emt 0:08:05]} Bb4 {[%emt 0:14:33]
} 15. Qb3 {[%emt 0:10:59]} Bc5 {[%emt 0:10:34]} 16. Na4 {[%emt 0:00:00]} Bd4 {
[%emt 0:00:06]} 17. Bb2 {[%emt 0:00:05]} Bxb2 {[%emt 0:00:25]} 18. Qxb2 {
[%emt 0:00:32]} (18. Nxb2 Bd7 19. Nd3 (19. Qxb7 $2 Rb8 $19) 19... Rb8 $16)
18... h5 {[%emt 0:00:10]} 19. h4 {[%emt 0:04:17]} Ng4 {[%emt 0:01:59]} 20. Ra3
{[%emt 0:00:20]} f5 {[%emt 0:00:55]} 21. exf5 {[%emt 0:01:17]} Bxf5 {[%emt 0:
00:05]} 22. Nc5 {[%emt 0:02:08][%cal Ya4c5,Yc5e4,Ye4g5] Prevents e4.} (22. Qxb7
$6 e4 $16) 22... Qe7 {[%emt 0:05:27]} 23. Nce4 {[%emt 0:00:49]} ({Less strong
is} 23. Nxb7 e4 24. c5 (24. f3 exf3 25. Nxf3 Rab8 $14) 24... Qf6 25. Qxf6 Nxf6
$18) 23... Rad8 {[%emt 0:06:32]} 24. Rb3 {[%emt 0:00:00]} Bc8 {[%emt 0:00:09]}
25. Qc2 {[%emt 0:01:09]} Nh8 {[%emt 0:01:38]} 26. Ng5 {[%emt 0:02:45] [#] Qh7+
would kill now.} Nf6 {[%emt 0:00:06] Against Qh7+} 27. Nde4 {[%emt 0:00:49]}
Rf8 {[%emt 0:01:45]} (27... g6 $142 28. Nxf6+ Qxf6) 28. c5 {[%emt 0:01:14]
[%cal Yc4c5,Yc5c6,Yc6b7] Strongly threatening d6.} Nxe4 {[%emt 0:02:02]} 29.
Qxe4 {[%emt 0:00:46][%csl Gg5][%cal Re4h7]} g6 {[%emt 0:01:34]} 30. Rc1 {
[%emt 0:01:58]} Kg7 {[%emt 0:00:18]} 31. Re3 {[%emt 0:00:00]} Rde8 $2 {[%emt 0:
01:36] [#]} (31... Nf7 32. Nxf7 Rxf7) 32. c6 $18 {[%emt 0:00:59]} Nf7 {[%emt 0:
00:31]} 33. cxb7 {[%emt 0:01:10]} Bf5 {[%emt 0:00:00]} 34. Ne6+ {[%emt 0:00:19]
} Bxe6 {[%emt 0:00:28]} 35. dxe6 {[%emt 0:00:04]} Qxe6 {[%emt 0:00:06]} 36.
Rxc7 {[%emt 0:00:17]} Kh6 {[%emt 0:00:08]} 37. Rc6 {[%emt 0:01:07]} Nd6 {
[%emt 0:00:04]} 38. Qb4 {[%emt 0:00:12]} Rd8 {[%emt 0:00:00]} 39. Rd3 {[%emt 0:
01:28] White mates.} Rxf2 {[%emt 0:00:51]} 40. Kxf2 {[%emt 0:01:05][%cal Yg1f2,
Yf2e2,Ye2f1]} Qf5+ {[%emt 0:00:33]} 41. Ke2 {[%emt 0:31:12]} e4 {[%emt 0:01:42]
} 42. Rdxd6 {[%emt 0:00:00]} Qg4+ {[%emt 0:00:00]} 43. Kf1 {[%emt 0:00:00]
Weighted Error Value: White=0.09 (flawless) / Black=0.47} 1-0

[Event "44th Chess Olympiad Open 2022"]
[Site "Chennai"]
[Date "2022.08.03"]
[Round "6.16"]
[White "Flores, Diego"]
[Black "Onyshchuk, Volodymyr"]
[Result "0-1"]
[WhiteElo "2528"]
[BlackElo "2612"]
[Annotator "TA"]
[PlyCount "60"]
[EventDate "2022.??.??"]
[TimeControl "60"]

{[%evp 15,60,3,56,11,22,-9,-22,-17,-17,-15,-20,-18,-14,-19,-12,-10,-16,-12,-12,
-18,0,0,0,0,0,0,0,0,0,-346,-347,-333,-283,-681,-664,-663,-654,-638,-617,-1422,
-543,-29988,-29989,-29995,-29996,-29996,-29997]} 1. Nf3 {[%emt 0:00:21]} Nf6 {
[%emt 0:00:21]} 2. d4 {[%emt 0:00:34]} g6 {[%emt 0:00:05]} 3. c4 {[%emt 0:00:
00]} Bg7 {[%emt 0:00:04]} 4. Nc3 {[%emt 0:00:13]} O-O {[%emt 0:00:16]} 5. e4 {
[%emt 0:01:16]} d6 {[%emt 0:00:12]} 6. Be2 {[%emt 0:00:13]} c6 {[%emt 0:00:14]}
7. O-O {[%emt 0:00:37]} e5 {[%emt 0:00:47]} 8. Be3 {[%emt 0:00:53]} Na6 {
[%emt 0:00:34]} ({Black should play} 8... exd4 $1 $11 9. Nxd4 (9. Qxd4 Ng4 $15)
(9. Bxd4 Re8 $11) 9... Re8) 9. Rb1 {[%emt 0:09:09] E94: King's Indian:
Classical: 6 Be2 e5 7 0-0: Various Black 7th moves.} exd4 {[%emt 0:09:36]} 10.
Bxd4 {[%emt 0:06:51]} (10. Qxd4 Ng4 11. Qd3 Nxe3 12. Qxe3 Re8 $15) 10... Re8 {
[%emt 0:00:39]} 11. Nd2 {[%emt 0:03:18] The position is equal.} Nc5 {[%emt 0:
00:00][%cal Rc5e4]} 12. f3 {[%emt 0:04:01]} Ne6 {[%emt 0:09:50] [#]} (12... Nd5
{feels hotter.} 13. Nb3 Nxc3 14. bxc3 Na4) 13. Be3 $146 {[%emt 0:10:10]} ({
Predecessor:} 13. Bf2 Nf4 14. Re1 Nxe2+ 15. Rxe2 Nh5 16. Nf1 Be6 17. Rd2 Bxc4
18. Rxd6 Qg5 19. Be3 {0-1 (62) Zhu,C (2503)-Kovalevskaya,E (2497) Groningen
1999}) 13... d5 {[%emt 0:08:44]} 14. cxd5 {[%emt 0:14:56]} (14. exd5 {is more
complex.} cxd5 15. cxd5 Nxd5 16. Nxd5 Qxd5 17. Bc4) 14... cxd5 {[%emt 0:00:53]}
15. exd5 {[%emt 0:00:44]} Nxd5 {[%emt 0:14:55]} 16. Nxd5 {[%emt 0:00:30]} Qxd5
{[%emt 0:00:02]} 17. Bc4 {[%emt 0:00:42]} Qe5 {[%emt 0:00:08]} 18. Re1 {
[%emt 0:06:16]} b5 {[%emt 0:11:02]} 19. Bf2 {[%emt 0:09:35]} Qf5 {[%emt 0:00:
00]} 20. g4 {[%emt 0:13:49]} Qf4 {[%emt 0:06:14]} 21. Bd5 {[%emt 0:03:00]} ({
Not} 21. Bxb5 $2 Rd8 22. Re4 (22. Be3 $2 Bd4 $19) 22... Qxd2 $19) 21... Rd8 {
[%emt 0:00:28]} 22. Bxa8 {[%emt 0:04:02]} (22. Re4 $11 {and White has nothing
to worry.} Rxd5 23. Rxf4 Nxf4 24. Be3) 22... Rxd2 $19 {[%emt 0:00:00]} 23. Qc1
{[%emt 0:00:17]} Bd4 $1 {[%emt 0:02:26] Dancing on a razor blade.} 24. Qxc8+ $2
{[%emt 0:02:34]} (24. Kh1 Bxf2 25. Rd1 (25. Qxc8+ $2 Nf8 $19) 25... Rxd1+ 26.
Qxd1) 24... Kg7 {[%emt 0:00:11]} 25. Rf1 {[%emt 0:00:15]} Be5 $1 {[%emt 0:04:
32][%csl Ge5][%cal Rf4h2]} 26. Bg3 {[%emt 0:00:41]} Qe3+ {[%emt 0:00:12]} 27.
Bf2 {[%emt 0:01:50] [#]} Qh6 {[%emt 0:04:47]} (27... Ng5 $142 $1 {( -> ...Nh3+)
} 28. Qc3 Nh3+ 29. Kh1 {[#]} Rxf2 $1 30. Qxe5+ Qxe5 31. Rxf2 Nxf2+ 32. Kg1 Qe3)
28. f4 {[%emt 0:00:11]} Nxf4 {[%emt 0:05:32] Black mates.} 29. h4 {[%emt 0:02:
08]} Nh3+ {[%emt 0:01:05]} 30. Kg2 {[%emt 0:00:14] [#]} Qf4 $1 {[%emt 0:00:13]
Weighted Error Value: White=1.05/Black=0.26 (precise)} 0-1

[Event "44th Chess Olympiad Open 2022"]
[Site "Chennai"]
[Date "2022.08.03"]
[Round "6.16"]
[White "Krysa, Leandro"]
[Black "Kuzubov, Yuriy"]
[Result "1-0"]
[WhiteElo "2515"]
[BlackElo "2642"]
[Annotator "TA"]
[PlyCount "63"]
[EventDate "2022.??.??"]
[TimeControl "60"]

{[%evp 9,63,19,16,15,37,42,36,28,35,18,18,24,24,27,21,17,29,39,56,70,67,54,95,
90,138,119,188,201,377,376,372,375,481,468,525,522,518,517,504,499,490,535,529,
528,879,890,889,884,882,882,852,837,826,809,725,752]} 1. d4 {[%emt 0:00:05]}
Nf6 {[%emt 0:00:10]} 2. c4 {[%emt 0:00:17]} e6 {[%emt 0:00:05]} 3. Nf3 {
[%emt 0:00:11]} d5 {[%emt 0:00:20]} 4. Nc3 {[%emt 0:00:20]} Nbd7 {[%emt 0:00:
00][%cal Yb8d7,Yd7b6,Yb6d5,Yd5c3]} 5. Bf4 {[%emt 0:00:42]} dxc4 {[%emt 0:00:08]
} 6. e3 {[%emt 0:00:30] D37: Queen's Gambit Declined: 5 Bf4.} b5 {[%emt 0:02:
23]} 7. Nxb5 {[%emt 0:01:12]} Bb4+ {[%emt 0:00:24]} 8. Nd2 {[%emt 0:01:29]
White is slightly better.} Nd5 {[%emt 0:40:17]} 9. Bg3 {[%emt 0:00:00]} (9.
Bxc4 Nxf4 10. exf4 Nb6 $11) 9... N7b6 {[%emt 0:00:22]} ({Much less strong is} 
9... a6 10. Nc3 $16) 10. a3 {[%emt 0:02:05]} Ba5 {[%emt 0:05:49]} 11. Rc1 $36 {
[%emt 0:00:24] Black is under pressure.} O-O {[%emt 0:00:00]} 12. Nc3 {[%emt 0:
00:30] [#]} Nxc3 $146 {[%emt 0:14:52]} ({Predecessor:} 12... Bb7 13. Nxc4 Nxc4
14. Bxc4 Nxc3 15. bxc3 Bxg2 16. Rg1 Be4 17. Qh5 Bf5 18. Ke2 Bb6 {1-0 (41)
Gelfand,B (2676)-Kramnik,V (2753) chess24.com INT 2020}) 13. bxc3 {[%emt 0:00:
10]} Nd5 {[%emt 0:00:26]} 14. Bxc4 {[%emt 0:17:46]} Nxc3 {[%emt 0:00:43]} 15.
Qf3 {[%emt 0:09:54]} Rb8 {[%emt 0:11:03] [#] Threatens to win with ...Nb1.
Black is now going downhill.} 16. O-O {[%emt 0:05:17]} Bb7 {[%emt 0:00:22]} (
16... Rb2 $142 17. Nb3 Ne2+ 18. Bxe2 Rxb3) 17. Qh5 $16 {[%emt 0:03:50]} Bd5 {
[%emt 0:01:04]} (17... Nd5 $16) 18. e4 $1 $18 {[%emt 0:00:00]} ({Resist} 18.
Bd3 $6 g6 19. Qh6 Rb2 $14) 18... g6 $2 {[%emt 0:07:38] [#]} (18... Rb2) 19. Qf3
$1 {[%emt 0:04:26]} Nb5 {[%emt 0:00:34]} 20. exd5 {[%emt 0:00:00]} Bxd2 {
[%emt 0:00:11]} 21. dxe6 {[%emt 0:01:14] White is clearly winning.} Nd6 {
[%emt 0:00:45]} 22. exf7+ {[%emt 0:01:58]} Nxf7 {[%emt 0:00:05]} 23. Rc2 {
[%emt 0:01:25]} Bg5 {[%emt 0:01:03]} 24. Be6 {[%emt 0:02:47] This bishop pair
is nice.} Qe7 {[%emt 0:00:32]} 25. d5 {[%emt 0:00:38][%cal Yd4d5,Yd5d6]} Rb7 {
[%emt 0:00:14]} 26. h4 {[%emt 0:05:39]} Bxh4 {[%emt 0:00:00]} 27. Bxh4 {
[%emt 0:01:01]} Qxh4 {[%emt 0:00:06]} 28. d6 {[%emt 0:00:30]} c6 {[%emt 0:00:
56]} 29. Rxc6 {[%emt 0:02:16][%cal Yc2c6,Yc6c4,Yc4d4] Hoping for Rc4.} Kg7 {
[%emt 0:00:35]} 30. Rc4 {[%emt 0:00:48]} Qf6 {[%emt 0:00:00]} 31. Qxb7 {
[%emt 0:00:15] Threatening mate with Bxf7.} Qxe6 {[%emt 0:00:04]} 32. Rd4 {
[%emt 0:00:46] Weighted Error Value: White=0.01 (flawless) /Black=0.29 
(precise)} 1-0